fUSD/lending_fUSD_20250612
["ID","MTS","AMOUNT","RATE_DAILY","PERIOD"]
[365504842,1749717225410,-490.0,0.00038045,120]
[365504843,1749717225508,-742.64,0.00038045,120]
[365504844,1749717225538,-490.0,0.00038045,120]
[365504845,1749717225573,-742.64,0.00038045,120]
[365504846,1749717225604,-462.63109361,0.00038045,120]
[365504847,1749717225633,-512.04,0.00038045,120]
[365504848,1749717225660,-490.0,0.00038045,120]
[365504849,1749717225686,-742.84672583,0.00038045,120]
[365504850,1749717225712,-490.0,0.00038045,120]
[365504851,1749717225738,-602.20203335,0.00038045,120]
[365504852,1749717225765,-490.0,0.00038045,120]
[365504853,1749717225792,-1000.0,0.00038045,120]
[365504854,1749717225821,-1000.0,0.00038045,120]
[365504855,1749717225848,-490.0,0.00038045,120]
[365504856,1749717225876,-1000.0,0.00038045,120]
[365504857,1749717225903,-490.0,0.00038045,120]
[365504858,1749717225929,-1000.0,0.00038045,120]
[365504859,1749717225957,-490.0,0.00038045,120]
[365504860,1749717225985,-1000.0,0.00038045,120]
[365504861,1749717226014,-490.0,0.00038045,120]
[365504862,1749717226042,-1000.0,0.00038045,120]
[365504863,1749717226070,-480.0,0.00038045,120]
[365504864,1749717226100,-1000.0,0.00038045,120]
[365504865,1749717226129,-1000.0,0.00038045,120]
[365504866,1749717226156,-1000.0,0.00038045,120]
[365504867,1749717226182,-815.69,0.00038045,120]
[365504868,1749717226208,-1000.0,0.00038045,120]
[365504869,1749717226235,-815.69,0.00038045,120]
[365504870,1749717226261,-1000.0,0.00038045,120]
[365504871,1749717226291,-815.69,0.00038045,120]
[365504872,1749717226320,-1000.0,0.00038045,120]
[365504873,1749717226348,-2280.01,0.00038045,120]
[365504874,1749717226376,-815.69,0.00038045,120]
[365504875,1749717226404,-1000.0,0.00038045,120]
[365504876,1749717226430,-2280.01,0.00038045,120]
[365504877,1749717226456,-815.69,0.00038045,120]
[365504878,1749717226487,-2280.01,0.00038045,120]
[365504879,1749717226514,-815.69,0.00038045,120]
[365504880,1749717226540,-2280.01,0.00038045,120]
[365504881,1749717226569,-815.69,0.00038045,120]
[365504882,1749717226596,-2280.01,0.00038045,120]
[365504883,1749717226623,-815.69,0.00038045,120]
[365504884,1749717226649,-2280.01,0.00038045,120]
[365504885,1749717226676,-815.69,0.00038045,120]
[365504886,1749717226702,-2280.01,0.00038045,120]
[365504887,1749717226728,-815.69,0.00038045,120]
[365504888,1749717226755,-815.69,0.00038045,120]
[365504889,1749717226782,-2280.01,0.00038045,120]
[365504890,1749717226808,-490.0,0.00038045,120]
[365504891,1749717226835,-815.69,0.00038045,120]
[365504892,1749717226862,-2280.01,0.00038045,120]
[365504893,1749717226890,-815.69,0.00038045,120]
[365504894,1749717226917,-2280.01,0.00038045,120]
[365504895,1749717226943,-2280.01,0.00038045,120]
[365504896,1749717226969,-815.69,0.00038045,120]
[365504897,1749717226995,-2280.01,0.00038045,120]
[365504898,1749717227022,-815.69,0.00038045,120]
[365504899,1749717227049,-2280.01,0.00038045,120]
[365504900,1749717227076,-815.69,0.00038045,120]
[365504901,1749717227103,-815.69,0.00038045,120]
[365504902,1749717227131,-2280.01,0.00038045,120]
[365504903,1749717227159,-815.69,0.00038045,120]
[365504904,1749717227188,-2280.01,0.00038045,120]
[365504905,1749717227214,-815.69,0.00038045,120]
[365504906,1749717227240,-2280.01,0.00038045,120]
[365504907,1749717227267,-815.69,0.00038045,120]
[365504908,1749717227295,-2280.01,0.00038045,120]
[365504909,1749717227323,-815.69,0.00038045,120]
[365504910,1749717227351,-2280.01,0.00038045,120]
[365504911,1749717227380,-815.69,0.00038045,120]
[365504912,1749717227407,-2280.01,0.00038045,120]
[365504913,1749717227434,-2280.01,0.00038045,120]
[365504914,1749717227460,-2280.01,0.00038045,120]
[365504915,1749717227488,-2280.01,0.00038045,120]
[365504916,1749717227515,-2280.01,0.00038045,120]
[365504917,1749717227542,-815.69,0.00038045,120]
[365504918,1749717227570,-2280.23673739,0.00038045,120]
[365504919,1749717227598,-815.89162553,0.00038045,120]
[365504920,1749717227625,-490.0,0.00038045,120]
[365504921,1749717227652,-490.0,0.00038045,120]
[365504922,1749717227679,-1153.49,0.00038045,120]
[365504923,1749717227705,-490.0,0.00038045,120]
[365504924,1749717227733,-480.0,0.00038045,120]
[365504925,1749717227759,-490.0,0.00038045,120]
[365504926,1749717227787,-1153.49,0.00038045,120]
[365504927,1749717227816,-490.0,0.00038045,120]
[365504928,1749717227844,-1153.49,0.00038045,120]
[365504929,1749717227871,-544.45730348,0.00038045,120]
[365504930,1749717227898,-1153.49,0.00038045,120]
[365504931,1749717227924,-1028.07,0.00038045,120]
[365504932,1749717227951,-1153.49,0.00038045,120]
[365504933,1749717227977,-1028.07,0.00038045,120]
[365504934,1749717228005,-1153.49,0.00038045,120]
[365504935,1749717228032,-456.62306314,0.00038045,120]
[365504936,1749717228060,-1028.07,0.00038045,120]
[365504937,1749717228091,-1153.49,0.00038045,120]
[365504938,1749717228261,-1028.07,0.00038045,120]
[365504939,1749717228294,-1153.49,0.00038045,120]
[365504940,1749717228325,-1028.07,0.00038045,120]
[365504941,1749717228355,-1153.49,0.00038045,120]
[365504942,1749717228385,-490.0,0.00038045,120]
[365504943,1749717228415,-1028.07,0.00038045,120]
[365504944,1749717228445,-1153.49,0.00038045,120]
[365504945,1749717228479,-490.0,0.00038045,120]
[365504946,1749717228513,-490.0,0.00038045,120]
[365504947,1749717228543,-1028.07,0.00038045,120]
[365504948,1749717228574,-1153.49,0.00038045,120]
[365504949,1749717228602,-490.0,0.00038045,120]
[365504950,1749717228632,-490.0,0.00038045,120]
[365504951,1749717228667,-1028.07,0.00038045,120]
[365504952,1749717228696,-1153.49,0.00038045,120]
[365504953,1749717228724,-490.0,0.00038045,120]
[365504954,1749717228751,-490.0,0.00038045,120]
[365504955,1749717228780,-1028.07,0.00038045,120]
[365504956,1749717228809,-1153.49,0.00038045,120]
[365504957,1749717228844,-490.0,0.00038045,120]
[365504958,1749717228872,-490.0,0.00038045,120]
[365504959,1749717228905,-490.0,0.00038045,120]
[365504960,1749717228933,-1028.07,0.00038045,120]
[365504961,1749717228960,-1153.49,0.00038045,120]
[365504962,1749717228988,-490.0,0.00038045,120]
[365504963,1749717229018,-490.0,0.00038045,120]
[365504964,1749717229047,-490.0,0.00038045,120]
[365504965,1749717229076,-1028.07,0.00038045,120]
[365504966,1749717229109,-490.0,0.00038045,120]
[365504967,1749717229138,-490.0,0.00038045,120]
[365504968,1749717229165,-490.0,0.00038045,120]
[365504969,1749717229195,-1153.49,0.00038045,120]
[365504970,1749717229224,-1028.07,0.00038045,120]
[365504971,1749717229253,-490.0,0.00038045,120]
[365504972,1749717229282,-490.0,0.00038045,120]
[365504973,1749717229311,-1153.49,0.00038045,120]
[365504974,1749717229339,-490.0,0.00038045,120]
[365504975,1749717229368,-1028.07,0.00038045,120]
[365504976,1749717229398,-490.0,0.00038045,120]
[365504977,1749717229426,-1153.49,0.00038045,120]
[365504978,1749717229455,-490.0,0.00038045,120]
[365504979,1749717229485,-490.0,0.00038045,120]
[365504980,1749717229514,-1028.07,0.00038045,120]
[365504981,1749717229543,-490.0,0.00038045,120]
[365504982,1749717229571,-1153.49,0.00038045,120]
[365504983,1749717229599,-490.0,0.00038045,120]
[365504984,1749717229625,-1028.07,0.00038045,120]
[365504985,1749717229658,-490.0,0.00038045,120]
[365504986,1749717229688,-490.0,0.00038045,120]
[365504987,1749717229718,-1153.49,0.00038045,120]
[365504988,1749717229748,-490.0,0.00038045,120]
[365504989,1749717229777,-1028.07,0.00038045,120]
[365504990,1749717229806,-490.0,0.00038045,120]
[365504991,1749717229835,-490.0,0.00038045,120]
[365504992,1749717229863,-490.0,0.00038045,120]
[365504993,1749717229892,-1153.49,0.00038045,120]
[365504994,1749717229920,-490.0,0.00038045,120]
[365504995,1749717229947,-490.0,0.00038045,120]
[365504996,1749717229974,-490.0,0.00038045,120]
[365504997,1749717230001,-1153.49,0.00038045,120]
[365504998,1749717230029,-490.0,0.00038045,120]
[365504999,1749717230057,-1028.07,0.00038045,120]
[365505000,1749717230084,-490.0,0.00038045,120]
[365505001,1749717230111,-490.0,0.00038045,120]
[365505002,1749717230137,-1153.49,0.00038045,120]
[365505003,1749717230164,-270.72,0.00038045,120]
[365505004,1749717230195,-1028.07,0.00038045,120]
[365505005,1749717230547,-490.0,0.00038045,120]
[365505006,1749717230591,-1153.49,0.00038045,120]
[365505007,1749717230620,-490.0,0.00038045,120]
[365505008,1749717230649,-1028.07,0.00038045,120]
[365505009,1749717230677,-1153.68,0.00038045,120]
[365505010,1749717230705,-490.0,0.00038045,120]
[365505011,1749717230733,-490.0,0.00038045,120]
[365505012,1749717230763,-1028.07,0.00038045,120]
[365505013,1749717230793,-490.0,0.00038045,120]
[365505014,1749717230826,-490.0,0.00038045,120]
[365505015,1749717230855,-1028.07,0.00038045,120]
[365505016,1749717230883,-490.0,0.00038045,120]
[365505017,1749717230910,-490.0,0.00038045,120]
[365505018,1749717230938,-400.2667985,0.00038045,120]
[365505019,1749717231187,-1028.07,0.00038045,120]
[365505020,1749717231219,-490.0,0.00038045,120]
[365505021,1749717231251,-490.0,0.00038045,120]
[365505022,1749717231282,-1028.07,0.00038045,120]
[365505023,1749717231317,-490.0,0.00038045,120]
[365505024,1749717231350,-209.51899041,0.00038045,120]
[365505025,1749717231381,-1028.19820567,0.00038045,120]
[365505026,1749717231418,-490.0,0.00038045,120]
[365505027,1749717231450,-490.0,0.00038045,120]
[365505028,1749717231482,-490.0,0.00038045,120]
[365505029,1749717231514,-490.0,0.00038045,120]
[365505030,1749717231546,-490.0,0.00038045,120]
[365505031,1749717231578,-598.45078774,0.00038045,120]
[365505032,1749717231611,-490.0,0.00038045,120]
[365505033,1749717231642,-490.0,0.00038045,120]
[365505034,1749717231672,-490.0,0.00038045,120]
[365505035,1749717231703,-490.0,0.00038045,120]
[365505036,1749717231735,-490.0,0.00038045,120]
[365505037,1749717231765,-490.0,0.00038045,120]
[365505038,1749717231795,-490.0,0.00038045,120]
[365505039,1749717231825,-490.0,0.00038045,120]
[365505040,1749717231854,-464.0172922,0.00038045,120]
[365505041,1749717231883,-1318.04,0.00038045,120]
[365505042,1749717231914,-1318.04,0.00038045,120]
[365505043,1749717231943,-1318.04,0.00038045,120]
[365505044,1749717231973,-1318.04,0.00038045,120]
[365505045,1749717232002,-1318.04,0.00038045,120]
[365505046,1749717232031,-1318.04,0.00038045,120]
[365505047,1749717232061,-1318.04,0.00038045,120]
[365505048,1749717232092,-1318.04,0.00038045,120]
[365505049,1749717232121,-490.0,0.00038045,120]
[365505050,1749717232151,-1318.04,0.00038045,120]
[365505051,1749717232181,-490.0,0.00038045,120]
[365505052,1749717232210,-490.0,0.00038045,120]
[365505053,1749717232239,-490.0,0.00038045,120]
[365505054,1749717232267,-1318.04,0.00038045,120]
[365505055,1749717232296,-490.0,0.00038045,120]
[365505056,1749717232327,-1318.04,0.00038045,120]
[365505057,1749717232357,-490.0,0.00038045,120]
[365505058,1749717232385,-490.0,0.00038045,120]
[365505059,1749717232414,-1318.04,0.00038045,120]
[365505060,1749717232441,-495.51932185,0.00038045,120]
[365505061,1749717232471,-490.0,0.00038045,120]
[365505062,1749717232499,-1318.04,0.00038045,120]
[365505063,1749717232526,-490.0,0.00038045,120]
[365505064,1749717232555,-1318.04,0.00038045,120]
[365505065,1749717232589,-490.0,0.00038045,120]
[365505066,1749717232620,-1318.04,0.00038045,120]
[365505067,1749717232650,-450.39059269,0.00038045,120]
[365505068,1749717232680,-1318.04,0.00038045,120]
[365505069,1749717232711,-1318.04,0.00038045,120]
[365505070,1749717232874,-1318.04,0.00038045,120]
[365505071,1749717232902,-491.87404972,0.00038045,120]
[365505072,1749717232928,-480.0,0.00038045,120]
[365505073,1749717232956,-894.46,0.00038045,120]
[365505074,1749717232983,-894.46,0.00038045,120]
[365505075,1749717233010,-894.46,0.00038045,120]
[365505076,1749717233040,-894.46,0.00038045,120]
[365505077,1749717233068,-894.46,0.00038045,120]
[365505078,1749717233096,-894.12,0.00038045,120]
[365505079,1749717233123,-894.46,0.00038045,120]
[365505080,1749717233149,-894.46,0.00038045,120]
[365505081,1749717233176,-894.46,0.00038045,120]
[365505082,1749717233202,-894.46,0.00038045,120]
[365505083,1749717233228,-894.46,0.00038045,120]
[365505084,1749717233256,-894.46,0.00038045,120]
[365505085,1749717233283,-894.46,0.00038045,120]
[365505086,1749717233310,-894.46,0.00038045,120]
[365505087,1749717233338,-894.46,0.00038045,120]
[365505088,1749717233368,-894.46,0.00038045,120]
[365505089,1749717233398,-894.46,0.00038045,120]
[365505090,1749717233426,-894.46,0.00038045,120]
[365505091,1749717233454,-894.46,0.00038045,120]
[365505092,1749717233480,-894.46,0.00038045,120]
[365505093,1749717233507,-894.46,0.00038045,120]
[365505094,1749717233535,-490.0,0.00038045,120]
[365505095,1749717233563,-490.0,0.00038045,120]
[365505096,1749717233590,-894.46,0.00038045,120]
[365505097,1749717233617,-490.0,0.00038045,120]
[365505098,1749717233645,-894.46,0.00038045,120]
[365505099,1749717233672,-490.0,0.00038045,120]
[365505100,1749717233699,-314.801189,0.00038045,120]
[365505101,1749717233739,-894.46,0.00038045,120]
[365505102,1749717233770,-490.0,0.00038045,120]
[365505103,1749717233800,-894.57844,0.00038045,120]
[365505104,1749717233829,-450.42336581,0.00038045,120]
[365505105,1749717233858,-490.0,0.00038045,120]
[365505106,1749717233886,-490.0,0.00038045,120]
[365505107,1749717233914,-894.12,0.00038045,120]
[365505108,1749717233942,-490.0,0.00038045,120]
[365505109,1749717233969,-894.12,0.00038045,120]
[365505110,1749717233997,-176.31845329,0.00038045,120]
[365505111,1749717234025,-894.12,0.00038045,120]
[365505112,1749717234053,-894.12,0.00038045,120]
[365505113,1749717234081,-894.12,0.00038045,120]
[365505114,1749717234111,-894.12,0.00038045,120]
[365505115,1749717234139,-894.12,0.00038045,120]
[365505116,1749717234167,-894.12,0.00038045,120]
[365505117,1749717234194,-894.12,0.00038045,120]
[365505118,1749717234221,-561.80060774,0.00038045,120]
[365505119,1749717234250,-894.12,0.00038045,120]
[365505120,1749717234285,-894.12,0.00038045,120]
[365505121,1749717234315,-894.12,0.00038045,120]
[365505122,1749717234345,-894.12,0.00038045,120]
[365505123,1749717234374,-894.12,0.00038045,120]
[365505124,1749717234404,-894.12,0.00038045,120]
[365505125,1749717234433,-894.12,0.00038045,120]
[365505126,1749717234465,-646.11,0.00038045,120]
[365505127,1749717234496,-894.12,0.00038045,120]
[365505128,1749717234527,-646.11,0.00038045,120]
[365505129,1749717234557,-894.12,0.00038045,120]
[365505130,1749717234587,-646.11,0.00038045,120]
[365505131,1749717234617,-894.12,0.00038045,120]
[365505132,1749717234646,-646.11,0.00038045,120]
[365505133,1749717234675,-894.12,0.00038045,120]
[365505134,1749717234704,-646.11,0.00038045,120]
[365505135,1749717234732,-894.12,0.00038045,120]
[365505136,1749717234760,-646.11,0.00038045,120]
[365505137,1749717234789,-894.12,0.00038045,120]
[365505138,1749717234821,-646.11,0.00038045,120]
[365505139,1749717234850,-490.0,0.00038045,120]
[365505140,1749717234878,-894.35895898,0.00038045,120]
[365505141,1749717234912,-646.11,0.00038045,120]
[365505142,1749717234940,-646.11,0.00038045,120]
[365505143,1749717234970,-646.11,0.00038045,120]
[365505144,1749717234999,-646.11,0.00038045,120]
[365505145,1749717235028,-646.11,0.00038045,120]
[365505146,1749717235058,-646.11,0.00038045,120]
[365505147,1749717235087,-646.11,0.00038045,120]
[365505148,1749717235117,-646.11,0.00038045,120]
[365505149,1749717235145,-646.11,0.00038045,120]
[365505150,1749717235173,-490.0,0.00038045,120]
[365505151,1749717235202,-646.11,0.00038045,120]
[365505152,1749717235231,-495.75703211,0.00038045,120]
[365505153,1749717235261,-646.11,0.00038045,120]
[365505154,1749717235290,-646.11,0.00038045,120]
[365505155,1749717235323,-646.11,0.00038045,120]
[365505156,1749717235351,-490.0,0.00038045,120]
[365505157,1749717235384,-490.0,0.00038045,120]
[365505158,1749717235412,-490.0,0.00038045,120]
[365505159,1749717235441,-646.11,0.00038045,120]
[365505160,1749717235471,-203.13807956,0.00038045,120]
[365505161,1749717235499,-490.0,0.00038045,120]
[365505162,1749717235527,-646.11,0.00038045,120]
[365505163,1749717235558,-646.11,0.00038045,120]
[365505164,1749717235589,-187.19624091,0.00038045,120]
[365505165,1749717235620,-646.32961079,0.00038045,120]
[365505166,1749717235650,-490.0,0.00038045,120]
[365505167,1749717235681,-490.0,0.00038045,120]
[365505168,1749717235711,-490.0,0.00038045,120]
[365505169,1749717235741,-490.0,0.00038045,120]
[365505170,1749717235772,-490.0,0.00038045,120]
[365505171,1749717235803,-490.0,0.00038045,120]
[365505172,1749717235832,-497.92884543,0.00038045,120]
[365505173,1749717235863,-490.0,0.00038045,120]
[365505174,1749717235894,-490.0,0.00038045,120]
[365505175,1749717235941,-490.0,0.00038045,120]
[365505176,1749717235974,-490.0,0.00038045,120]
[365505177,1749717236007,-490.0,0.00038045,120]
[365505178,1749717236041,-490.0,0.00038045,120]
[365505179,1749717236075,-490.0,0.00038045,120]
[365505180,1749717236106,-490.0,0.00038045,120]
[365505181,1749717236138,-490.0,0.00038045,120]
[365505182,1749717236170,-490.0,0.00038045,120]
[365505183,1749717236200,-416.56195329,0.00038045,120]
[365505184,1749717236232,-490.0,0.00038045,120]
[365505185,1749717236263,-490.0,0.00038045,120]
[365505186,1749717236296,-490.0,0.00038045,120]
[365505187,1749717236329,-535.01692018,0.00038045,120]
[365505188,1749717236361,-490.0,0.00038045,120]
[365505189,1749717236393,-490.0,0.00038045,120]
[365505190,1749717236428,-491.24583023,0.00038045,120]
[365505191,1749717236461,-1186.36,0.00038045,120]
[365505192,1749717236494,-1186.36,0.00038045,120]
[365505193,1749717236525,-1186.36,0.00038045,120]
[365505194,1749717236557,-1186.36,0.00038045,120]
[365505195,1749717236589,-1186.36,0.00038045,120]
[365505196,1749717236619,-1186.36,0.00038045,120]
[365505197,1749717236648,-1186.36,0.00038045,120]
[365505198,1749717236677,-1186.36,0.00038045,120]
[365505199,1749717236707,-1186.36,0.00038045,120]
[365505200,1749717236738,-1186.36,0.00038045,120]
[365505201,1749717236772,-1186.36,0.00038045,120]
[365505202,1749717236801,-1186.36,0.00038045,120]
[365505203,1749717236830,-1186.36,0.00038045,120]
[365505204,1749717236860,-1186.36,0.00038045,120]
[365505205,1749717236889,-1186.36,0.00038045,120]
[365505206,1749717236919,-1186.36,0.00038045,120]
[365505207,1749717236950,-1062.27618157,0.00038045,120]
[365505210,1749717286272,-205.0,0.0001805,2]
[365505211,1749717286294,-72.1762455,0.0001814,2]
[365505220,1749717387914,805.9,0.00024658,120]
[365505221,1749717390521,150.0,0.00024195,120]
[365505222,1749717492395,-202.0,0.00018056,2]
[365505223,1749717494285,319.56285029,0.00024195,120]
[365505228,1749717898252,2324.18206863,0.00024657,120]
[365505229,1749717903158,1396.2001834,0.00024658,120]
[365505230,1749717903220,1649.56,0.00024658,120]
[365505231,1749717906956,190.06,0.0002465,120]
[365505232,1749717956162,-159.99181557,0.00018049,2]
[365505233,1749717987727,500.34603563,0.00024658,120]
[365505234,1749717991318,150.0,0.00020111,120]
[365505236,1749718004775,200.0,0.0002465,120]
[365505237,1749718026813,200.0,0.0002465,120]
[365505238,1749718038144,-1158.24728443,0.00018049,2]
[365505239,1749718038166,-99.59000611,0.0001814,2]
[365505245,1749718117891,240.41,0.00013699,2]
[365505246,1749718125578,720.33,0.00016666,2]
[365505247,1749718130069,-200.0,0.00018,2]
[365505248,1749718130092,-98.17237951,0.0001804,2]
[365505249,1749718132340,-191.64319056,0.0001804,2]
[365505250,1749718132363,-73.80115705,0.0001814,2]
[365505251,1749718134580,-10.88404775,0.0001814,2]
[365505252,1749718134607,-177.12607693,0.0001814,2]
[365505253,1749718134632,-2.77611999,0.00018221,2]
[365505254,1749718139466,-199.22388001,0.00018221,2]
[365505255,1749718139488,-149.77611999,0.00018221,2]
[365505256,1749718142446,-1.22388001,0.00018221,2]
[365505257,1749718170349,250.17301782,0.00024658,120]
[365505265,1749718231774,-205.0,0.0001823,2]
[365505266,1749718231784,-205.0,0.0001841,2]
[365505267,1749718231793,-202.0,0.00018415,2]
[365505268,1749718231802,-200.0,0.000185,2]
[365505269,1749718231812,-69.71597347,0.0001859,2]
[365505270,1749718231823,-135.28402653,0.0001859,2]
[365505271,1749718231832,-150.0,0.0001862,7]
[365505272,1749718231842,-186.7,0.00018664,2]
[365505273,1749718231851,-205.0,0.0001877,2]
[365505274,1749718231860,-956.18298409,0.000188,2]
[365505275,1749718231916,-566.46701591,0.000188,2]
[365505276,1749718231925,-729.81833138,0.000188,2]
[365505277,1749718231952,-270.18166862,0.000188,2]
[365505279,1749718231961,-720.33,0.0001893,2]
[365505281,1749718231970,-205.0,0.0001895,2]
[365505283,1749718231979,-207.4,0.00018998,2]
[365505285,1749718231989,-200.0,0.00019,2]
[365505287,1749718231997,-1200.0,0.00019039,2]
[365505289,1749718232007,-300.0,0.0001904,2]
[365505291,1749718232015,-200.0,0.0001904,2]
[365505292,1749718232023,-200.0,0.00019041,2]
[365505293,1749718232031,-797.09,0.00019041,2]
[365505294,1749718232040,-797.09,0.00019041,2]
[365505295,1749718232049,-797.09,0.00019041,2]
[365505296,1749718232058,-797.09,0.00019041,2]
[365505297,1749718232067,-797.09,0.00019041,2]
[365505311,1749718232337,-797.09,0.00019041,2]
[365505312,1749718232358,-797.09,0.00019041,2]
[365505313,1749718232368,-797.09,0.00019041,2]
[365505314,1749718232377,-461.37,0.00019041,2]
[365505315,1749718232386,-797.09,0.00019041,2]
[365505316,1749718232395,-461.37,0.00019041,2]
[365505317,1749718232405,-1037.4284691,0.00019121,2]
[365505318,1749718232415,-205.0,0.0001914,2]
[365505319,1749718232424,-150.0,0.00019178,2]
[365505320,1749718232434,-150.0,0.00019178,2]
[365505321,1749718232443,-163.2,0.00019178,2]
[365505322,1749718232453,-354.34,0.00019178,2]
[365505323,1749718232462,-150.0,0.00019178,2]
[365505324,1749718232471,-150.0,0.00019178,2]
[365505325,1749718232480,-150.0,0.00019178,2]
[365505326,1749718232489,-150.0,0.00019178,2]
[365505327,1749718232499,-354.6,0.00019178,2]
[365505328,1749718232507,-354.6,0.00019178,2]
[365505329,1749718232517,-354.6,0.00019178,2]
[365505330,1749718232526,-354.6,0.00019178,2]
[365505331,1749718232535,-163.35,0.00019178,2]
[365505332,1749718232544,-150.48,0.00019178,2]
[365505333,1749718232554,-454.89,0.00019178,2]
[365505334,1749718232563,-345.90958646,0.00019182,2]
[365505335,1749718232573,-151.0,0.00019209,2]
[365505336,1749718232582,-415.24,0.00019221,2]
[365505337,1749718232592,-298.78,0.00019221,2]
[365505338,1749718232603,-2204.66,0.00019221,2]
[365505339,1749718232613,-150.99,0.00019221,2]
[365505340,1749718232623,-2866.19,0.00019221,2]
[365505341,1749718232633,-1087.86,0.00019221,2]
[365505342,1749718232642,-150.99,0.00019221,2]
[365505343,1749718232651,-999.99,0.00019221,2]
[365505344,1749718232661,-9999.99,0.00019221,2]
[365505345,1749718232671,-6645.5,0.00019221,2]
[365505346,1749718232680,-214.35,0.00019221,2]
[365505347,1749718232689,-29036.19563782,0.00019221,2]
[365505348,1749718232737,-4904.78050794,0.00019221,2]
[365505349,1749718232781,-9107.2982209,0.00019221,2]
[365505353,1749718237764,-3660.76925576,0.00019221,2]
[365505354,1749718237814,-527.95,0.00019221,2]
[365505355,1749718237997,-899.75580869,0.00019221,2]
[365505359,1749718239804,-1180.59889413,0.00019221,2]
[365505360,1749718239963,-6207.23275571,0.00019221,2]
[365505361,1749718240070,-1282.0,0.00019221,2]
[365505365,1749718242803,-678.991629,0.00019221,2]
[365505366,1749718242814,-4801.65217062,0.00019221,2]
[365505367,1749718242825,-6177.18706618,0.00019221,2]
[365505368,1749718242869,-1467.98596892,0.00019221,2]
[365505369,1749718242919,-11348.46208433,0.00019221,2]
[365505370,1749718242928,-205.0,0.0001932,2]
[365505371,1749718242938,-633.0,0.00019334,2]
[365505372,1749718242948,-633.0,0.0001938,2]
[365505373,1749718242957,-150.11,0.00019452,2]
[365505374,1749718242967,-205.0,0.000195,2]
[365505375,1749718242976,-200.0,0.000195,2]
[365505376,1749718242987,-508.7,0.000195,2]
[365505377,1749718242996,-500.98,0.000195,2]
[365505378,1749718243007,-633.0,0.00019534,2]
[365505379,1749718243016,-633.0,0.00019559,2]
[365505380,1749718243026,-633.0,0.00019566,2]
[365505381,1749718243036,-454.89,0.00019584,2]
[365505382,1749718243046,-454.89,0.00019584,2]
[365505383,1749718243056,-454.89,0.00019584,2]
[365505384,1749718243065,-454.96,0.00019584,2]
[365505385,1749718243075,-509.7,0.00019584,2]
[365505386,1749718243084,-454.89,0.00019584,2]
[365505387,1749718243094,-1098.821878,0.00019596,2]
[365505388,1749718243103,-633.0,0.00019635,2]
[365505389,1749718243113,-202.0,0.00019638,3]
[365505390,1749718243122,-205.0,0.0001968,2]
[365505392,1749718243131,-2475.6864065,0.000197,2]
[365505394,1749718243142,-2170.14899812,0.00019722,2]
[365505396,1749718243151,-783.86707444,0.00019742,2]
[365505402,1749718243197,-1386.2819236,0.00019742,2]
[365505404,1749718243206,-150.45978089,0.00019744,2]
[365505406,1749718243216,-150.45978088,0.00019753,2]
[365505408,1749718243225,-2170.14899804,0.00019762,2]